[Event "Titled Tuesday Blitz June 20 Early 2023"]
[White "Goryachkina, Aleksandra"]
[Black "Mikhailovsky, Vladimir"]
[WhiteFideId "4147103"]
[BlackFideId "34105414"]
[WhiteElo "2471"]
[BlackElo "2244"]
[Result "0-1"]
[Round "11"]
[TimeControl "180+2"]
[Date "2023.06.20"]
[WhiteClock "0:00:00"]
[BlackClock "0:00:06"]
[Board "27"]

1. e4 {[%clk 0:02:59]}  Nf6 {[%clk 0:02:56]} 2. e5 {[%clk 0:02:58]}  Nd5 {[%clk 0:02:56]} 3. d4 {[%clk 0:02:57]}  d6 {[%clk 0:02:57]} 4. Nf3 {[%clk 0:02:57]}  dxe5 {[%clk 0:02:57]} 5. Nxe5 {[%clk 0:02:52]}  c6 {[%clk 0:02:57]} 6. Be2 {[%clk 0:02:49]}  Bf5 {[%clk 0:02:57]} 7. O-O {[%clk 0:02:42]}  Nd7 {[%clk 0:02:54]} 8. Nf3 {[%clk 0:02:38]}  e6 {[%clk 0:02:53]} 9. a3 {[%clk 0:02:23]}  h6 {[%clk 0:02:45]} 10. c4 {[%clk 0:02:21]}  N5f6 {[%clk 0:02:46]} 11. Nc3 {[%clk 0:02:20]}  Bd6 {[%clk 0:02:35]} 12. d5 {[%clk 0:02:04]}  Qc7 {[%clk 0:02:11]} 13. h3 {[%clk 0:01:47]}  O-O {[%clk 0:02:05]} 14. Nd4 {[%clk 0:01:38]}  Bh2+ {[%clk 0:01:49]} 15. Kh1 {[%clk 0:01:38]}  Be5 {[%clk 0:01:50]} 16. Nxf5 {[%clk 0:01:17]}  exf5 {[%clk 0:01:49]} 17. dxc6 {[%clk 0:01:12]}  bxc6 {[%clk 0:01:45]} 18. Qc2 {[%clk 0:01:11]}  Rfe8 {[%clk 0:01:35]} 19. Bd2 {[%clk 0:00:43]}  f4 {[%clk 0:01:29]} 20. Bf3 {[%clk 0:00:40]}  Nc5 {[%clk 0:01:28]} 21. Rad1 {[%clk 0:00:37]}  Ne6 {[%clk 0:01:26]} 22. Ne2 {[%clk 0:00:34]}  Ng5 {[%clk 0:01:22]} 23. Ng1 {[%clk 0:00:34]}  Rab8 {[%clk 0:01:11]} 24. Bc1 {[%clk 0:00:34]}  c5 {[%clk 0:01:07]} 25. Rd3 {[%clk 0:00:24]}  Bd4 {[%clk 0:01:03]} 26. Ne2 {[%clk 0:00:20]}  Be5 {[%clk 0:00:43]} 27. Nc3 {[%clk 0:00:19]}  Nxf3 {[%clk 0:00:40]} 28. Rxf3 {[%clk 0:00:19]}  Rbd8 {[%clk 0:00:40]} 29. Ne2 {[%clk 0:00:15]}  g5 {[%clk 0:00:35]} 30. Rd3 {[%clk 0:00:14]}  Kg7 {[%clk 0:00:31]} 31. Rfd1 {[%clk 0:00:14]}  Rxd3 {[%clk 0:00:23]} 32. Qxd3 {[%clk 0:00:14]}  Qc6 {[%clk 0:00:23]} 33. Kg1 {[%clk 0:00:14]}  Rb8 {[%clk 0:00:17]} 34. Qc2 {[%clk 0:00:12]}  f3 {[%clk 0:00:17]} 35. Nc3 {[%clk 0:00:07]}  fxg2 {[%clk 0:00:12]} 36. Nd5 {[%clk 0:00:07]}  Nxd5 {[%clk 0:00:13]} 37. cxd5 {[%clk 0:00:07]}  Qf6 {[%clk 0:00:13]} 38. Kxg2 {[%clk 0:00:04]}  Bd4 {[%clk 0:00:11]} 39. Qe2 {[%clk 0:00:01]}  Rb3 {[%clk 0:00:06]} 40. Rd3 {[%clk 0:00:02]}  Rxd3 {[%clk 0:00:05]} 41. Qxd3 {[%clk 0:00:00]}  Qxf2+ {[%clk 0:00:06]} 0-1


[Site "https://www.chess.com"]

[Event "Titled Tuesday Blitz June 20 Early 2023"]
[White "Kvaloy, Aksel Bu"]
[Black "Lorparizangeneh, Shahin"]
[WhiteFideId "1528815"]
[BlackFideId "12521604"]
[WhiteElo "2318"]
[BlackElo "2526"]
[Result "0-1"]
[Round "11"]
[TimeControl "180+2"]
[Date "2023.06.20"]
[WhiteClock "0:00:00"]
[BlackClock "0:00:37"]
[Board "29"]

1. e4 {[%clk 0:03:00]}  c5 {[%clk 0:02:29]} 2. Nf3 {[%clk 0:02:59]}  Nc6 {[%clk 0:02:30]} 3. b4 {[%clk 0:02:57]}  cxb4 {[%clk 0:02:27]} 4. d4 {[%clk 0:02:58]}  d5 {[%clk 0:02:27]} 5. exd5 {[%clk 0:02:58]}  Qxd5 {[%clk 0:02:28]} 6. c4 {[%clk 0:02:59]}  bxc3 {[%clk 0:02:26]} 7. Nxc3 {[%clk 0:02:59]}  Qh5 {[%clk 0:02:25]} 8. d5 {[%clk 0:02:58]}  Ne5 {[%clk 0:02:25]} 9. Bf4 {[%clk 0:02:08]}  Nxf3+ {[%clk 0:02:03]} 10. gxf3 {[%clk 0:02:08]}  a6 {[%clk 0:01:54]} 11. Qa4+ {[%clk 0:01:49]}  Bd7 {[%clk 0:01:51]} 12. Bb5 {[%clk 0:01:47]}  Nf6 {[%clk 0:01:19]} 13. Bxd7+ {[%clk 0:01:27]}  Nxd7 {[%clk 0:01:19]} 14. Nb5 {[%clk 0:01:27]}  Qxf3 {[%clk 0:01:14]} 15. Nc7+ {[%clk 0:01:27]}  Kd8 {[%clk 0:01:15]} 16. Nxa8 {[%clk 0:00:12]}  Qxh1+ {[%clk 0:01:13]} 17. Ke2 {[%clk 0:00:13]}  Qxa1 {[%clk 0:01:08]} 18. Qc2 {[%clk 0:00:07]}  e5 {[%clk 0:00:57]} 19. dxe6 {[%clk 0:00:04]}  Bc5 {[%clk 0:00:48]} 20. exf7 {[%clk 0:00:02]}  Qd4 {[%clk 0:00:44]} 21. Bg5+ {[%clk 0:00:02]}  Kc8 {[%clk 0:00:42]} 22. Qf5 {[%clk 0:00:03]}  Qxf2+ {[%clk 0:00:36]} 23. Qxf2 {[%clk 0:00:01]}  Bxf2 {[%clk 0:00:37]} 24. Kxf2 {[%clk 0:00:02]}  Rf8 {[%clk 0:00:37]} 25. Nb6+ {[%clk 0:00:00]}  Nxb6 {[%clk 0:00:37]} 0-1


[Site "https://www.chess.com"]

[Event "Titled Tuesday Blitz June 20 Early 2023"]
[White "Simonian, Hrair"]
[Black "Koshulyan, Egor A."]
[WhiteFideId "13302337"]
[BlackFideId "24237000"]
[WhiteElo "2447"]
[BlackElo "2216"]
[Result "1-0"]
[Round "11"]
[TimeControl "180+2"]
[Date "2023.06.20"]
[WhiteClock "0:00:09"]
[BlackClock "0:00:00"]
[Board "30"]

1. e4 {[%clk 0:03:00]}  c5 {[%clk 0:02:54]} 2. Nc3 {[%clk 0:03:00]}  Nc6 {[%clk 0:02:54]} 3. Bb5 {[%clk 0:03:00]}  g5 {[%clk 0:02:53]} 4. Bxc6 {[%clk 0:03:00]}  dxc6 {[%clk 0:02:54]} 5. d3 {[%clk 0:03:01]}  g4 {[%clk 0:02:53]} 6. Nge2 {[%clk 0:03:01]}  h5 {[%clk 0:02:54]} 7. Be3 {[%clk 0:03:00]}  b6 {[%clk 0:02:51]} 8. h4 {[%clk 0:02:57]}  Bg7 {[%clk 0:02:51]} 9. Qd2 {[%clk 0:02:57]}  Nf6 {[%clk 0:02:25]} 10. O-O-O {[%clk 0:02:56]}  Nd7 {[%clk 0:02:25]} 11. f3 {[%clk 0:02:55]}  b5 {[%clk 0:02:24]} 12. d4 {[%clk 0:02:54]}  b4 {[%clk 0:02:24]} 13. Na4 {[%clk 0:02:53]}  Qa5 {[%clk 0:02:24]} 14. b3 {[%clk 0:02:53]}  c4 {[%clk 0:02:25]} 15. d5 {[%clk 0:02:44]}  c3 {[%clk 0:02:18]} 16. Qe1 {[%clk 0:02:35]}  Nb6 {[%clk 0:02:18]} 17. Bxb6 {[%clk 0:02:32]}  axb6 {[%clk 0:02:19]} 18. Nd4 {[%clk 0:01:54]}  Bxd4 {[%clk 0:02:01]} 19. Rxd4 {[%clk 0:01:55]}  b5 {[%clk 0:02:01]} 20. a3 {[%clk 0:01:38]}  c5 {[%clk 0:01:50]} 21. Nxc5 {[%clk 0:01:38]}  Qxa3+ {[%clk 0:01:44]} 22. Kd1 {[%clk 0:01:38]}  Qb2 {[%clk 0:01:38]} 23. Ke2 {[%clk 0:01:12]}  Qxc2+ {[%clk 0:01:35]} 24. Ke3 {[%clk 0:01:12]}  Qxg2 {[%clk 0:01:36]} 25. Qf1 {[%clk 0:01:12]}  gxf3 {[%clk 0:01:08]} 26. Qxb5+ {[%clk 0:01:01]}  Kf8 {[%clk 0:01:06]} 27. Rf1 {[%clk 0:01:01]}  c2 {[%clk 0:00:46]} 28. Rd2 {[%clk 0:00:54]}  f2 {[%clk 0:00:32]} 29. Rdxf2 {[%clk 0:00:49]}  Qg3+ {[%clk 0:00:32]} 30. Rf3 {[%clk 0:00:46]}  Qg7 {[%clk 0:00:33]} 31. Rxf7+ {[%clk 0:00:32]}  Qxf7 {[%clk 0:00:33]} 32. Rxf7+ {[%clk 0:00:32]}  Kxf7 {[%clk 0:00:34]} 33. Qf1+ {[%clk 0:00:32]}  Ke8 {[%clk 0:00:31]} 34. Na4 {[%clk 0:00:27]}  Bg4 {[%clk 0:00:29]} 35. Qc4 {[%clk 0:00:22]}  Rc8 {[%clk 0:00:28]} 36. Nc5 {[%clk 0:00:22]}  Bd1 {[%clk 0:00:21]} 37. Kd2 {[%clk 0:00:18]}  Rf8 {[%clk 0:00:21]} 38. Qb5+ {[%clk 0:00:19]}  Kf7 {[%clk 0:00:21]} 39. Qb6 {[%clk 0:00:19]}  Bg4 {[%clk 0:00:05]} 40. Kxc2 {[%clk 0:00:18]}  Kg7 {[%clk 0:00:05]} 41. Kd3 {[%clk 0:00:18]}  Rf3+ {[%clk 0:00:05]} 42. Kd4 {[%clk 0:00:18]}  Rc3 {[%clk 0:00:04]} 43. Ne6+ {[%clk 0:00:18]}  Bxe6 {[%clk 0:00:05]} 44. Qxe6 {[%clk 0:00:18]}  Rf8 {[%clk 0:00:03]} 45. Qxe7+ {[%clk 0:00:19]}  Rf7 {[%clk 0:00:04]} 46. Qg5+ {[%clk 0:00:19]}  Kh7 {[%clk 0:00:04]} 47. Qxh5+ {[%clk 0:00:15]}  Kg7 {[%clk 0:00:04]} 48. Qg5+ {[%clk 0:00:16]}  Kh7 {[%clk 0:00:05]} 49. h5 {[%clk 0:00:15]}  Rff3 {[%clk 0:00:04]} 50. Qg6+ {[%clk 0:00:15]}  Kh8 {[%clk 0:00:05]} 51. h6 {[%clk 0:00:16]}  Rfd3+ {[%clk 0:00:02]} 52. Ke5 {[%clk 0:00:16]}  Rc7 {[%clk 0:00:03]} 53. Qf6+ {[%clk 0:00:15]}  Kh7 {[%clk 0:00:03]} 54. d6 {[%clk 0:00:15]}  Rd7 {[%clk 0:00:03]} 55. Qe6 {[%clk 0:00:09]}  Rb7 {[%clk 0:00:00]} 56. Kf5 {[%clk 0:00:09]} 1-0


[Site "https://www.chess.com"]

[Event "Titled Tuesday Blitz June 20 Early 2023"]
[White "Eugene, Floryan"]
[Black "Zemlyanskii, Ivan"]
[WhiteFideId "20694784"]
[BlackFideId "24249971"]
[WhiteElo "2369"]
[BlackElo "2421"]
[Result "0-1"]
[Round "11"]
[TimeControl "180+2"]
[Date "2023.06.20"]
[WhiteClock "0:00:09"]
[BlackClock "0:00:17"]
[Board "33"]

1. d4 {[%clk 0:03:00]}  d5 {[%clk 0:02:59]} 2. Nf3 {[%clk 0:02:58]}  Nf6 {[%clk 0:02:59]} 3. c4 {[%clk 0:02:58]}  c6 {[%clk 0:02:59]} 4. e3 {[%clk 0:02:57]}  Bf5 {[%clk 0:02:57]} 5. Nh4 {[%clk 0:02:53]}  Be4 {[%clk 0:02:51]} 6. Nc3 {[%clk 0:02:51]}  e6 {[%clk 0:02:51]} 7. f3 {[%clk 0:02:50]}  Bg6 {[%clk 0:02:51]} 8. Qb3 {[%clk 0:02:49]}  Qc7 {[%clk 0:02:42]} 9. Nxg6 {[%clk 0:02:46]}  hxg6 {[%clk 0:02:41]} 10. g3 {[%clk 0:02:44]}  Nbd7 {[%clk 0:02:35]} 11. Bd2 {[%clk 0:02:41]}  Bd6 {[%clk 0:02:29]} 12. f4 {[%clk 0:02:40]}  a6 {[%clk 0:02:23]} 13. Rc1 {[%clk 0:02:34]}  Qb8 {[%clk 0:02:20]} 14. a4 {[%clk 0:02:20]}  g5 {[%clk 0:02:15]} 15. Bg2 {[%clk 0:02:16]}  gxf4 {[%clk 0:02:13]} 16. exf4 {[%clk 0:02:14]}  O-O {[%clk 0:02:06]} 17. O-O {[%clk 0:02:12]}  a5 {[%clk 0:01:52]} 18. f5 {[%clk 0:01:54]}  dxc4 {[%clk 0:01:26]} 19. Qxc4 {[%clk 0:01:53]}  e5 {[%clk 0:01:27]} 20. d5 {[%clk 0:01:37]}  Nb6 {[%clk 0:01:22]} 21. Qh4 {[%clk 0:01:33]}  Nbxd5 {[%clk 0:01:21]} 22. Nxd5 {[%clk 0:01:32]}  cxd5 {[%clk 0:01:22]} 23. g4 {[%clk 0:01:25]}  Qa7+ {[%clk 0:01:07]} 24. Kh1 {[%clk 0:01:25]}  Qd4 {[%clk 0:01:07]} 25. Bc3 {[%clk 0:01:22]}  Qxg4 {[%clk 0:01:03]} 26. Qe1 {[%clk 0:01:01]}  d4 {[%clk 0:01:02]} 27. Bxa5 {[%clk 0:00:54]}  e4 {[%clk 0:01:01]} 28. Bb4 {[%clk 0:00:30]}  Bxb4 {[%clk 0:00:45]} 29. Qxb4 {[%clk 0:00:31]}  Rad8 {[%clk 0:00:44]} 30. Rce1 {[%clk 0:00:25]}  Rfe8 {[%clk 0:00:43]} 31. Qxb7 {[%clk 0:00:23]}  e3 {[%clk 0:00:40]} 32. Qf3 {[%clk 0:00:18]}  Qxf3 {[%clk 0:00:34]} 33. Rxf3 {[%clk 0:00:19]}  Nd5 {[%clk 0:00:31]} 34. Bf1 {[%clk 0:00:15]}  Nb4 {[%clk 0:00:31]} 35. Rf4 {[%clk 0:00:14]}  Nc2 {[%clk 0:00:28]} 36. Rc1 {[%clk 0:00:14]}  e2 {[%clk 0:00:28]} 37. Rxc2 {[%clk 0:00:13]}  e1=Q {[%clk 0:00:28]} 38. Rg2 {[%clk 0:00:12]}  d3 {[%clk 0:00:27]} 39. f6 {[%clk 0:00:12]}  g6 {[%clk 0:00:17]} 40. Kg1 {[%clk 0:00:09]} 0-1


[Site "https://www.chess.com"]

[Event "Titled Tuesday Blitz June 20 Early 2023"]
[White "Timofeev, Artyom"]
[Black "Gavrilov, Maxim"]
[WhiteFideId "4140419"]
[BlackFideId "24271454"]
[WhiteElo "2570"]
[BlackElo "1969"]
[Result "1-0"]
[Round "11"]
[TimeControl "180+2"]
[Date "2023.06.20"]
[WhiteClock "0:02:20"]
[BlackClock "0:01:58"]
[Board "38"]

1. d4 {[%clk 0:03:00]}  Nf6 {[%clk 0:02:58]} 2. c4 {[%clk 0:03:00]}  e6 {[%clk 0:02:58]} 3. Nc3 {[%clk 0:02:59]}  Bb4 {[%clk 0:02:58]} 4. f3 {[%clk 0:02:59]}  O-O {[%clk 0:02:50]} 5. e4 {[%clk 0:02:49]}  Bxc3+ {[%clk 0:02:50]} 6. bxc3 {[%clk 0:02:48]}  d5 {[%clk 0:02:50]} 7. cxd5 {[%clk 0:02:46]}  exd5 {[%clk 0:02:50]} 8. e5 {[%clk 0:02:46]}  Re8 {[%clk 0:02:44]} 9. Bd3 {[%clk 0:02:42]}  h6 {[%clk 0:02:30]} 10. Ne2 {[%clk 0:02:38]}  Nfd7 {[%clk 0:02:29]} 11. O-O {[%clk 0:02:38]}  c5 {[%clk 0:02:28]} 12. f4 {[%clk 0:02:38]}  Nc6 {[%clk 0:02:27]} 13. Kh1 {[%clk 0:02:32]}  cxd4 {[%clk 0:02:25]} 14. cxd4 {[%clk 0:02:32]}  Qb6 {[%clk 0:02:24]} 15. Be3 {[%clk 0:02:29]}  Nf8 {[%clk 0:02:20]} 16. Rb1 {[%clk 0:02:26]}  Qa5 {[%clk 0:02:18]} 17. f5 {[%clk 0:02:26]}  Qxa2 {[%clk 0:02:05]} 18. f6 {[%clk 0:02:22]}  Ng6 {[%clk 0:01:58]} 19. Bxg6 {[%clk 0:02:20]} 1-0


[Site "https://www.chess.com"]

[Event "Titled Tuesday Blitz June 20 Early 2023"]
[White "Girya, Olga"]
[Black "Weetik, Vjacheslav"]
[WhiteFideId "4195752"]
[BlackFideId "4153472"]
[WhiteElo "2263"]
[BlackElo "2469"]
[Result "1-0"]
[Round "11"]
[TimeControl "180+2"]
[Date "2023.06.20"]
[WhiteClock "0:00:06"]
[BlackClock "0:00:00"]
[Board "43"]

1. d4 {[%clk 0:03:00]}  Nf6 {[%clk 0:02:59]} 2. Nf3 {[%clk 0:03:00]}  e6 {[%clk 0:02:58]} 3. c4 {[%clk 0:03:00]}  Bb4+ {[%clk 0:02:55]} 4. Bd2 {[%clk 0:03:00]}  Qe7 {[%clk 0:02:55]} 5. g3 {[%clk 0:03:00]}  Nc6 {[%clk 0:02:54]} 6. a3 {[%clk 0:03:00]}  Bxd2+ {[%clk 0:02:52]} 7. Qxd2 {[%clk 0:03:00]}  e5 {[%clk 0:02:52]} 8. d5 {[%clk 0:02:45]}  Nb8 {[%clk 0:02:51]} 9. Qg5 {[%clk 0:02:44]}  e4 {[%clk 0:02:47]} 10. Nd4 {[%clk 0:02:39]}  h6 {[%clk 0:02:24]} 11. Qf4 {[%clk 0:02:13]}  d6 {[%clk 0:02:20]} 12. Nc3 {[%clk 0:02:13]}  O-O {[%clk 0:02:07]} 13. Bg2 {[%clk 0:02:11]}  Re8 {[%clk 0:02:05]} 14. O-O {[%clk 0:02:07]}  a5 {[%clk 0:02:05]} 15. b4 {[%clk 0:02:02]}  Na6 {[%clk 0:02:05]} 16. Rab1 {[%clk 0:01:57]}  axb4 {[%clk 0:02:03]} 17. axb4 {[%clk 0:01:56]}  Bd7 {[%clk 0:02:04]} 18. Qe3 {[%clk 0:01:26]}  Qe5 {[%clk 0:01:31]} 19. Rfd1 {[%clk 0:00:48]}  Ng4 {[%clk 0:01:30]} 20. Qf4 {[%clk 0:00:46]}  Qxf4 {[%clk 0:01:15]} 21. gxf4 {[%clk 0:00:46]}  e3 {[%clk 0:01:16]} 22. f3 {[%clk 0:00:45]}  Nf6 {[%clk 0:01:13]} 23. f5 {[%clk 0:00:39]}  Nh5 {[%clk 0:00:59]} 24. h4 {[%clk 0:00:21]}  Nf4 {[%clk 0:00:58]} 25. Kh2 {[%clk 0:00:21]}  g5 {[%clk 0:00:47]} 26. Kg3 {[%clk 0:00:20]}  Kg7 {[%clk 0:00:41]} 27. Bh3 {[%clk 0:00:15]}  Kf6 {[%clk 0:00:37]} 28. hxg5+ {[%clk 0:00:15]}  hxg5 {[%clk 0:00:37]} 29. Bg4 {[%clk 0:00:15]}  c5 {[%clk 0:00:22]} 30. bxc5 {[%clk 0:00:09]}  dxc5 {[%clk 0:00:22]} 31. Nc2 {[%clk 0:00:08]}  Nb4 {[%clk 0:00:15]} 32. Nxb4 {[%clk 0:00:08]}  cxb4 {[%clk 0:00:16]} 33. Rxb4 {[%clk 0:00:09]}  Ra3 {[%clk 0:00:17]} 34. Rb6+ {[%clk 0:00:08]}  Kg7 {[%clk 0:00:17]} 35. Ne4 {[%clk 0:00:08]}  Nxe2+ {[%clk 0:00:16]} 36. Kg2 {[%clk 0:00:06]}  Nf4+ {[%clk 0:00:15]} 37. Kg3 {[%clk 0:00:07]}  Ne2+ {[%clk 0:00:09]} 38. Kg2 {[%clk 0:00:07]}  Nf4+ {[%clk 0:00:09]} 39. Kg3 {[%clk 0:00:07]}  e2 {[%clk 0:00:10]} 40. Re1 {[%clk 0:00:07]}  Rd8 {[%clk 0:00:04]} 41. Nxg5 {[%clk 0:00:06]}  Nd3 {[%clk 0:00:01]} 42. Rxe2 {[%clk 0:00:06]}  Nc5 {[%clk 0:00:00]} 43. Re7 {[%clk 0:00:06]} 1-0


[Site "https://www.chess.com"]

[Event "Titled Tuesday Blitz June 20 Early 2023"]
[White "Aloma Vidal, Robert"]
[Black "Petrosian, Karlen"]
[WhiteFideId "2260409"]
[BlackFideId "4176146"]
[WhiteElo "2435"]
[BlackElo "2345"]
[Result "1-0"]
[Round "11"]
[TimeControl "180+2"]
[Date "2023.06.20"]
[WhiteClock "0:00:04"]
[BlackClock "0:00:01"]
[Board "46"]

1. e4 {[%clk 0:03:00]}  e6 {[%clk 0:02:59]} 2. d4 {[%clk 0:03:01]}  d5 {[%clk 0:02:59]} 3. e5 {[%clk 0:03:01]}  c5 {[%clk 0:02:59]} 4. c3 {[%clk 0:03:02]}  Qb6 {[%clk 0:02:59]} 5. Nf3 {[%clk 0:03:02]}  Bd7 {[%clk 0:03:00]} 6. Bd3 {[%clk 0:03:00]}  cxd4 {[%clk 0:02:59]} 7. Nxd4 {[%clk 0:02:59]}  Nc6 {[%clk 0:02:58]} 8. Nxc6 {[%clk 0:02:57]}  Bxc6 {[%clk 0:02:58]} 9. O-O {[%clk 0:02:57]}  Bb5 {[%clk 0:02:54]} 10. Bxb5+ {[%clk 0:02:42]}  Qxb5 {[%clk 0:02:53]} 11. a4 {[%clk 0:02:43]}  Qd7 {[%clk 0:02:46]} 12. Be3 {[%clk 0:02:32]}  h5 {[%clk 0:02:35]} 13. b4 {[%clk 0:02:27]}  g6 {[%clk 0:02:35]} 14. Na3 {[%clk 0:02:21]}  Nh6 {[%clk 0:02:35]} 15. c4 {[%clk 0:01:52]}  Bxb4 {[%clk 0:02:12]} 16. cxd5 {[%clk 0:01:52]}  Bxa3 {[%clk 0:01:56]} 17. Rxa3 {[%clk 0:01:49]}  exd5 {[%clk 0:01:56]} 18. Rd3 {[%clk 0:01:35]}  Nf5 {[%clk 0:01:55]} 19. Rxd5 {[%clk 0:01:31]}  Qc7 {[%clk 0:01:29]} 20. Bc5 {[%clk 0:01:24]}  Ne7 {[%clk 0:01:27]} 21. Bd6 {[%clk 0:01:15]}  Qd7 {[%clk 0:01:25]} 22. Bxe7 {[%clk 0:01:03]}  Qxe7 {[%clk 0:01:26]} 23. Re1 {[%clk 0:00:34]}  O-O {[%clk 0:01:23]} 24. Rd7 {[%clk 0:00:34]}  Qb4 {[%clk 0:01:18]} 25. e6 {[%clk 0:00:34]}  Kg7 {[%clk 0:00:29]} 26. h3 {[%clk 0:00:29]}  Rae8 {[%clk 0:00:27]} 27. e7 {[%clk 0:00:27]}  Rg8 {[%clk 0:00:27]} 28. Qa1+ {[%clk 0:00:25]}  f6 {[%clk 0:00:23]} 29. Re6 {[%clk 0:00:21]}  Qf4 {[%clk 0:00:23]} 30. Rxb7 {[%clk 0:00:17]}  a5 {[%clk 0:00:24]} 31. Rbb6 {[%clk 0:00:14]}  Kh7 {[%clk 0:00:22]} 32. Rxf6 {[%clk 0:00:15]}  Qc4 {[%clk 0:00:19]} 33. Rbc6 {[%clk 0:00:13]}  Qd5 {[%clk 0:00:19]} 34. Rcd6 {[%clk 0:00:13]}  Qc4 {[%clk 0:00:19]} 35. Rde6 {[%clk 0:00:12]}  Rg7 {[%clk 0:00:19]} 36. Qe5 {[%clk 0:00:09]}  Qxa4 {[%clk 0:00:16]} 37. Rxg6 {[%clk 0:00:09]}  Qd1+ {[%clk 0:00:13]} 38. Kh2 {[%clk 0:00:09]}  Rxg6 {[%clk 0:00:13]} 39. Qf5 {[%clk 0:00:05]}  Rg8 {[%clk 0:00:06]} 40. Rxg6 {[%clk 0:00:05]}  Rxg6 {[%clk 0:00:05]} 41. e8=Q {[%clk 0:00:05]}  Qd6+ {[%clk 0:00:04]} 42. g3 {[%clk 0:00:05]}  h4 {[%clk 0:00:04]} 43. Qef7+ {[%clk 0:00:05]}  Kh6 {[%clk 0:00:05]} 44. Qf4+ {[%clk 0:00:04]}  Rg5 {[%clk 0:00:01]} 45. Qxd6+ {[%clk 0:00:04]} 1-0


[Site "https://www.chess.com"]

[Event "Titled Tuesday Blitz June 20 Early 2023"]
[White "Ashraf, Artin"]
[Black "chess123456s"]
[WhiteFideId "22514805"]
[WhiteElo "2224"]
[BlackElo "2542"]
[Result "0-1"]
[Round "11"]
[TimeControl "180+2"]
[Date "2023.06.21"]
[WhiteClock "0:00:00"]
[BlackClock "0:00:30"]
[Board "49"]

1. d4 {[%clk 0:03:00]}  d5 {[%clk 0:02:59]} 2. Nf3 {[%clk 0:02:54]}  Nf6 {[%clk 0:02:59]} 3. c4 {[%clk 0:02:53]}  c6 {[%clk 0:02:59]} 4. Nc3 {[%clk 0:02:51]}  e6 {[%clk 0:02:59]} 5. e3 {[%clk 0:02:51]}  Nbd7 {[%clk 0:02:59]} 6. Qc2 {[%clk 0:02:51]}  Bd6 {[%clk 0:02:59]} 7. g4 {[%clk 0:02:50]}  h6 {[%clk 0:02:59]} 8. Rg1 {[%clk 0:02:49]}  e5 {[%clk 0:02:58]} 9. cxd5 {[%clk 0:02:49]}  cxd5 {[%clk 0:02:58]} 10. Nb5 {[%clk 0:02:49]}  Bb8 {[%clk 0:02:58]} 11. dxe5 {[%clk 0:01:36]}  Nxe5 {[%clk 0:02:56]} 12. Nxe5 {[%clk 0:01:36]}  Bxe5 {[%clk 0:02:57]} 13. g5 {[%clk 0:01:36]}  hxg5 {[%clk 0:02:48]} 14. Rxg5 {[%clk 0:01:35]}  Ng4 {[%clk 0:02:23]} 15. Rxe5+ {[%clk 0:00:50]}  Nxe5 {[%clk 0:02:23]} 16. Qc7 {[%clk 0:00:47]}  Nf3+ {[%clk 0:01:49]} 17. Ke2 {[%clk 0:00:32]}  Ng1+ {[%clk 0:01:47]} 18. Ke1 {[%clk 0:00:30]}  O-O {[%clk 0:01:47]} 19. Qg3 {[%clk 0:00:24]}  d4 {[%clk 0:01:40]} 20. Qxg1 {[%clk 0:00:16]}  d3 {[%clk 0:01:40]} 21. Bd2 {[%clk 0:00:15]}  Bf5 {[%clk 0:01:38]} 22. Nd4 {[%clk 0:00:11]}  Bg6 {[%clk 0:01:38]} 23. Bc3 {[%clk 0:00:11]}  Re8 {[%clk 0:01:37]} 24. h4 {[%clk 0:00:09]}  Rc8 {[%clk 0:01:37]} 25. h5 {[%clk 0:00:06]}  Bxh5 {[%clk 0:01:29]} 26. Bxd3 {[%clk 0:00:05]}  Qh4 {[%clk 0:01:24]} 27. Kd2 {[%clk 0:00:03]}  Red8 {[%clk 0:01:19]} 28. Qg2 {[%clk 0:00:02]}  Qf6 {[%clk 0:01:04]} 29. Rg1 {[%clk 0:00:02]}  b5 {[%clk 0:00:59]} 30. Qh2 {[%clk 0:00:02]}  Bg6 {[%clk 0:00:48]} 31. Bxg6 {[%clk 0:00:02]}  fxg6 {[%clk 0:00:49]} 32. a3 {[%clk 0:00:02]}  a5 {[%clk 0:00:48]} 33. Rg4 {[%clk 0:00:02]}  Rc4 {[%clk 0:00:46]} 34. Qf4 {[%clk 0:00:02]}  Qxf4 {[%clk 0:00:43]} 35. Rxf4 {[%clk 0:00:03]}  b4 {[%clk 0:00:43]} 36. axb4 {[%clk 0:00:02]}  axb4 {[%clk 0:00:44]} 37. Kd3 {[%clk 0:00:03]}  bxc3 {[%clk 0:00:40]} 38. bxc3 {[%clk 0:00:04]}  Rdc8 {[%clk 0:00:39]} 39. Ne2 {[%clk 0:00:03]}  Rxf4 {[%clk 0:00:38]} 40. Nxf4 {[%clk 0:00:04]}  Kf7 {[%clk 0:00:39]} 41. c4 {[%clk 0:00:03]}  Kf6 {[%clk 0:00:38]} 42. Nd5+ {[%clk 0:00:03]}  Ke5 {[%clk 0:00:37]} 43. Nb4 {[%clk 0:00:04]}  g5 {[%clk 0:00:36]} 44. Nc2 {[%clk 0:00:03]}  g4 {[%clk 0:00:36]} 45. Nd4 {[%clk 0:00:03]}  Rf8 {[%clk 0:00:36]} 46. Ke2 {[%clk 0:00:03]}  Ke4 {[%clk 0:00:36]} 47. Nb5 {[%clk 0:00:03]}  Ra8 {[%clk 0:00:32]} 48. Nc3+ {[%clk 0:00:02]}  Ke5 {[%clk 0:00:33]} 49. Kd3 {[%clk 0:00:02]}  Rh8 {[%clk 0:00:31]} 50. Ke2 {[%clk 0:00:01]}  Rh2 {[%clk 0:00:31]} 51. Nd5 {[%clk 0:00:01]}  g3 {[%clk 0:00:30]} 52. Kf3 {[%clk 0:00:02]}  g2 {[%clk 0:00:30]} 53. Ke2 {[%clk 0:00:00]}  g1=Q {[%clk 0:00:30]} 0-1


[Site "https://www.chess.com"]